fUST/lending_fUST_20250625
["ID","MTS","AMOUNT","RATE_DAILY","PERIOD"]
[367569819,1750861853137,-460.0,0.00017647,2]
[367569820,1750861853146,-992.29,0.00017647,2]
[367569821,1750861853155,-460.0,0.00017648,2]
[367569822,1750861853164,-460.0,0.00017648,2]
[367569823,1750861853174,-460.0,0.00017648,2]
[367569824,1750861853183,-460.0,0.00017648,2]
[367569825,1750861853191,-460.0,0.00017648,2]
[367569826,1750861853201,-460.0,0.00017648,2]
[367569827,1750861853210,-460.0,0.00017648,2]
[367569828,1750861853219,-460.0,0.00017648,2]
[367569829,1750861853229,-460.0,0.00017648,2]
[367569830,1750861853238,-707.06,0.00017648,2]
[367569831,1750861853248,-313.18317917,0.00017648,2]
[367569832,1750861853257,-488.07,0.00017648,2]
[367569833,1750861853267,-460.0,0.00017648,2]
[367569834,1750861853276,-5919.03,0.00017648,2]
[367569835,1750861853286,-646.55,0.00017648,2]
[367569836,1750861853297,-790.7,0.00017648,2]
[367569837,1750861853307,-575.56,0.00017648,2]
[367569838,1750861853318,-460.0,0.00017648,2]
[367569839,1750861853328,-460.0,0.00017648,2]
[367569840,1750861853338,-862.99,0.00017648,2]
[367569841,1750861853349,-2431.62,0.00017648,2]
[367569842,1750861853358,-460.0,0.00017648,2]
[367569843,1750861853368,-898.85,0.00017648,2]
[367569844,1750861853377,-775.84,0.00017649,2]
[367569845,1750861853387,-487.31,0.00017649,2]
[367569846,1750861853397,-151.0,0.00017649,2]
[367569847,1750861853406,-195.997592,0.00017649,2]
[367569848,1750861853417,-497.45,0.00017649,2]
[367569849,1750861853426,-1224.78,0.00017649,2]
[367569850,1750861853435,-151.0,0.00017649,2]
[367569851,1750861853445,-460.0,0.00017649,2]
[367569852,1750861853455,-844.57,0.00017649,2]
[367569853,1750861853465,-460.0,0.00017649,2]
[367569854,1750861853474,-460.0,0.00017649,2]
[367569855,1750861853483,-242.645154,0.00017649,2]
[367569856,1750861853494,-242.645154,0.00017649,2]
[367569857,1750861853503,-531.66,0.00017649,2]
[367569858,1750861853512,-460.0,0.00017649,2]
[367569859,1750861853522,-2452.55,0.00017649,2]
[367569860,1750861853531,-460.0,0.00017649,2]
[367569861,1750861853541,-1591.01,0.00017649,2]
[367569862,1750861853551,-460.0,0.00017649,2]
[367569863,1750861853560,-460.0,0.00017649,2]
[367569864,1750861853570,-1989.73,0.00017649,2]
[367569865,1750861853579,-460.0,0.00017649,2]
[367569866,1750861853588,-151.0,0.00017649,2]
[367569867,1750861853597,-6847.14,0.00017649,2]
[367569868,1750861853607,-1607.44,0.00017649,2]
[367569869,1750861853616,-460.0,0.00017649,2]
[367569870,1750861853626,-1318.414088,0.00017649,2]
[367569871,1750861853635,-1318.414088,0.00017649,2]
[367569872,1750861853645,-1017.64,0.00017649,2]
[367569873,1750861853654,-1689.44,0.00017649,2]
[367569874,1750861853664,-1208.83,0.00017649,2]
[367569875,1750861853673,-165.68503,0.0001765,2]
[367569876,1750861853683,-165.68503,0.0001765,2]
[367569877,1750861853694,-151.0,0.00017651,2]
[367569878,1750861853704,-645.96,0.00017651,2]
[367569879,1750861853714,-460.0,0.00017651,2]
[367569880,1750861853724,-460.0,0.00017651,2]
[367569881,1750861853733,-460.0,0.00017651,2]
[367569882,1750861853742,-460.0,0.00017651,2]
[367569883,1750861853752,-450.40937752,0.00017651,2]
[367569884,1750861853762,-460.0,0.00017651,2]
[367569885,1750861853772,-462.32,0.00017651,2]
[367569886,1750861853782,-460.0,0.00017651,2]
[367569887,1750861853791,-183.45312,0.00017651,2]
[367569888,1750861853801,-460.0,0.00017651,2]
[367569889,1750861853811,-274.57837122,0.00017651,2]
[367569890,1750861853824,-460.0,0.00017651,2]
[367569891,1750861853834,-151.0,0.00017651,2]
[367569892,1750861853844,-460.0,0.00017651,2]
[367569893,1750861853855,-460.0,0.00017651,2]
[367569894,1750861853865,-442.62483145,0.00017651,2]
[367569895,1750861853875,-460.0,0.00017651,2]
[367569896,1750861853884,-514.71,0.00017651,2]
[367569897,1750861853895,-395.48678114,0.00017651,2]
[367569898,1750861853904,-460.0,0.00017651,2]
[367569899,1750861853914,-151.0,0.00017652,2]
[367569900,1750861853923,-136.67711387,0.00017652,2]
[367569901,1750861853963,-14.32288613,0.00017652,2]
[367569902,1750861853972,-151.0,0.00017652,2]
[367569903,1750861853982,-153.794092,0.00017652,2]
[367569904,1750861853992,-153.794092,0.00017652,2]
[367569905,1750861854002,-151.0,0.00017652,2]
[367569906,1750861854011,-151.0,0.00017652,2]
[367569907,1750861854021,-287.42766,0.00017652,2]
[367569908,1750861854030,-384.345501,0.00017652,2]
[367569909,1750861854039,-384.345501,0.00017652,2]
[367569910,1750861854049,-151.0,0.00017652,2]
[367569911,1750861854058,-151.0,0.00017652,2]
[367569912,1750861854067,-151.0,0.00017653,2]
[367569913,1750861854076,-151.0,0.00017653,2]
[367569914,1750861854086,-151.0,0.00017653,2]
[367569915,1750861854094,-305.92098463,0.0001766,2]
[367569916,1750861854542,-383.1922272,0.0001655,2]
[367569917,1750861854574,-76.8077728,0.0001655,2]
[367569918,1750861854584,-460.0,0.00016551,2]
[367569919,1750861854594,-4.8422272,0.00016551,2]
[367569920,1750861854605,-455.1577728,0.00016551,2]
[367569921,1750861854614,-322.47321736,0.00016825,2]
[367569922,1750861854626,-137.52678264,0.00016825,2]
[367569923,1750861854635,-460.0,0.00017099,2]
[367569924,1750861854644,-460.0,0.00017373,2]
[367569925,1750861854654,-198.0,0.00017527,2]
[367569926,1750861854663,-1701.77552693,0.0001766,2]
[367569927,1750861854674,-804.06704292,0.0001766,2]
[367569928,1750861854688,-645.29,0.0001766,2]
[367569929,1750861854846,-574.9477627,0.000168,2]
[367569930,1750861854856,-31542.94644552,0.0001766,2]
[367569931,1750861854866,-151.0,0.0001766,2]
[367569932,1750861854876,-692.0,0.00017664,2]
[367569933,1750861854885,-500.0,0.00017664,2]
[367569934,1750861854895,-153.21834357,0.00017664,2]
[367569935,1750861854907,-692.0,0.00017691,2]
[367569936,1750861854917,-639.63132908,0.00017691,2]
[367569937,1750861854927,-151.0,0.00017692,2]
[367569938,1750861854937,-151.0,0.00017692,2]
[367569939,1750861854947,-242.645154,0.00017692,2]
[367569940,1750861854956,-242.645154,0.00017692,2]
[367569941,1750861854967,-151.0,0.000177,2]
[367569942,1750861854976,-151.0,0.000177,2]
[367569943,1750861854985,-692.0,0.00017719,2]
[367569944,1750861854996,-692.0,0.00017746,2]
[367569945,1750861855005,-5000.0,0.00017753,2]
[367569946,1750861855015,-395.70083,0.00017773,2]
[367569947,1750861855023,-395.70083,0.00017773,2]
[367569948,1750861855033,-232.133688,0.00017773,2]
[367569949,1750861855042,-232.133688,0.00017773,2]
[367569950,1750861855052,-151.0,0.00017773,2]
[367569951,1750861855061,-1318.414088,0.00017773,2]
[367569952,1750861855071,-1318.414088,0.00017773,2]
[367569953,1750861855081,-692.0,0.00017773,2]
[367569954,1750861855090,-151.0,0.000178,2]
[367569955,1750861855099,-151.0,0.000178,2]
[367569956,1750861855109,-692.0,0.00017801,2]
[367569957,1750861855118,-10522.58486933,0.00017809,2]
[367569958,1750861855130,-1138.76227182,0.00017809,2]
[367569959,1750861855139,-165.68503,0.00017809,2]
[367569960,1750861855150,-165.68503,0.00017809,2]
[367569961,1750861855159,-180.041618,0.00017809,2]
[367569962,1750861855168,-796.58375162,0.00017819,2]
[367569965,1750862375354,1235.5493545,0.00015497,2]
[367569971,1750862433235,163.909859,0.00013699,2]
[367569977,1750862651491,1000.0,0.00024,120]
[367569978,1750862707105,1000.0,0.00024,120]
[367569991,1750862890101,-163.0,0.00016159,2]
[367570044,1750863032680,-92.0,0.00016159,2]
[367570046,1750863032690,-810.00020179,0.00016347,2]
[367570048,1750863032699,-300.0,0.00016444,2]
[367570050,1750863032710,-299.36777814,0.00016445,2]
[367570052,1750863032720,-460.0,0.00016445,2]
[367570054,1750863032729,-460.0,0.00016445,2]
[367570056,1750863032739,-460.0,0.00016445,2]
[367570058,1750863032750,-460.0,0.00016445,2]
[367570060,1750863032760,-455.00995715,0.00016445,2]
[367570062,1750863032770,-430.61201168,0.00016445,2]
[367570064,1750863032779,-531.57,0.00016445,2]
[367570066,1750863032789,-460.0,0.00016445,2]
[367570068,1750863032798,-460.0,0.00016445,2]
[367570070,1750863032807,-460.0,0.00016445,2]
[367570072,1750863032817,-279.76,0.00016445,2]
[367570074,1750863032826,-460.0,0.00016445,2]
[367570076,1750863032835,-460.0,0.00016445,2]
[367570078,1750863032844,-304.43901757,0.00016445,2]
[367570080,1750863032854,-460.0,0.00016445,2]
[367570082,1750863032863,-1512.62,0.00016445,2]
[367570084,1750863032873,-460.0,0.00016445,2]
[367570086,1750863032882,-1629.01208866,0.00016445,2]
[367570089,1750863032899,-1568.86791134,0.00016445,2]
[367570091,1750863032909,-460.0,0.00016445,2]
[367570093,1750863032919,-314.67226862,0.00016445,2]
[367570095,1750863032931,-161.20638581,0.00016445,2]
[367570097,1750863032941,-460.0,0.00016445,2]
[367570099,1750863032950,-460.0,0.00016445,2]
[367570101,1750863032959,-533.14120762,0.00016445,2]
[367570103,1750863032968,-500.0,0.00016445,2]
[367570105,1750863032978,-220.54294824,0.00016445,2]
[367570107,1750863032988,-517.15455593,0.00016445,2]
[367570109,1750863032997,-500.0,0.00016445,2]
[367570111,1750863033006,-460.0,0.00016446,2]
[367570113,1750863033015,-460.0,0.00016446,2]
[367570115,1750863033025,-338.09934342,0.00016446,2]
[367570117,1750863033034,-460.0,0.00016446,2]
[367570119,1750863033043,-460.0,0.00016446,2]
[367570121,1750863033052,-460.0,0.00016446,2]
[367570123,1750863033062,-460.0,0.00016446,2]
[367570125,1750863033071,-460.0,0.00016446,2]
[367570127,1750863033080,-460.0,0.00016446,2]
[367570129,1750863033089,-114.01503623,0.00016446,2]
[367570131,1750863033101,-345.98496377,0.00016446,2]
[367570133,1750863033111,-460.0,0.00016446,2]
[367570135,1750863033120,-460.0,0.00016446,2]
[367570137,1750863033130,-299.49543788,0.00016446,2]
[367570139,1750863033139,-460.0,0.00016446,2]
[367570141,1750863033149,-460.0,0.00016446,2]
[367570143,1750863033158,-460.0,0.00016446,2]
[367570145,1750863033168,-564.20924757,0.00016446,2]
[367570147,1750863033178,-460.0,0.00016446,2]
[367570149,1750863033187,-500.0,0.00016446,2]
[367570151,1750863033196,-460.0,0.00016446,2]
[367570153,1750863033206,-500.0,0.00016446,2]
[367570155,1750863033217,-460.0,0.00016446,2]
[367570158,1750863033227,-460.0,0.00016446,2]
[367570160,1750863033237,-439.67921954,0.00016446,2]
[367570162,1750863033247,-460.0,0.00016446,2]
[367570164,1750863033256,-460.0,0.00016446,2]
[367570166,1750863033265,-460.0,0.00016446,2]
[367570168,1750863033274,-460.0,0.00016446,2]
[367570170,1750863033283,-460.0,0.00016446,2]
[367570172,1750863033294,-460.0,0.00016446,2]
[367570190,1750863033455,-460.0,0.00016446,2]
[367570193,1750863033469,-460.0,0.00016446,2]
[367570195,1750863033480,-460.0,0.00016446,2]
[367570197,1750863033491,-460.0,0.00016446,2]
[367570199,1750863033502,-460.0,0.00016446,2]
[367570201,1750863033512,-161.90401864,0.00016446,2]
[367570203,1750863033522,-460.0,0.00016446,2]
[367570205,1750863033532,-0.59193966,0.00016446,2]
[367570712,1750863038707,-459.40806034,0.00016446,2]
[367570714,1750863038719,-460.0,0.00016446,2]
[367570716,1750863038729,-460.0,0.00016446,2]
[367570718,1750863038739,-460.0,0.00016446,2]
[367570720,1750863038750,-460.0,0.00016446,2]
[367570722,1750863038760,-552.06,0.00016446,2]
[367570724,1750863038769,-460.0,0.00016446,2]
[367570726,1750863038779,-460.0,0.00016446,2]
[367570728,1750863038788,-460.0,0.00016446,2]
[367570729,1750863038797,-460.0,0.00016446,2]
[367570731,1750863038807,-460.0,0.00016446,2]
[367570733,1750863038816,-460.0,0.00016446,2]
[367570736,1750863038825,-460.0,0.00016446,2]
[367570738,1750863038835,-460.0,0.00016446,2]
[367570740,1750863038844,-2892.61,0.00016446,2]
[367570742,1750863038853,-460.0,0.00016446,2]
[367570744,1750863038863,-460.0,0.00016446,2]
[367570745,1750863038872,-2442.54,0.00016446,2]
[367570748,1750863038881,-460.0,0.00016446,2]
[367570749,1750863038891,-786.4,0.00016446,2]
[367570752,1750863038900,-460.0,0.00016446,2]
[367570753,1750863038909,-460.0,0.00016446,2]
[367570755,1750863038919,-460.0,0.00016446,2]
[367570758,1750863038929,-460.0,0.00016446,2]
[367570759,1750863038938,-460.0,0.00016446,2]
[367570761,1750863038948,-460.0,0.00016446,2]
[367570764,1750863038957,-460.0,0.00016446,2]
[367570765,1750863038967,-623.35,0.00016446,2]
[367570767,1750863038977,-593.26937783,0.00016446,2]
[367570768,1750863038986,-315.65993067,0.00016446,2]
[367570770,1750863038996,-548.66,0.00016446,2]
[367570772,1750863039006,-460.0,0.00016446,2]
[367570773,1750863039016,-353.91517458,0.00016446,2]
[367570775,1750863039026,-181.32348082,0.00016446,2]
[367570776,1750863039036,-500.0,0.00016446,2]
[367570777,1750863039045,-460.0,0.00016446,2]
[367570779,1750863039056,-460.0,0.00016446,2]
[367570781,1750863039065,-903.34,0.00016446,2]
[367570782,1750863039074,-1515.63,0.00016446,2]
[367570784,1750863039084,-460.0,0.00016446,2]
[367570785,1750863039093,-460.0,0.00016446,2]
[367570787,1750863039102,-460.0,0.00016446,2]
[367570788,1750863039111,-460.0,0.00016446,2]
[367570790,1750863039122,-460.0,0.00016446,2]
[367570791,1750863039131,-245.89,0.00016446,2]
[367570793,1750863039140,-460.0,0.00016446,2]
[367570794,1750863039150,-576.36,0.00016446,2]
[367570796,1750863039159,-460.0,0.00016446,2]
[367570797,1750863039168,-460.0,0.00016446,2]
[367570799,1750863039178,-460.0,0.00016446,2]
[367570800,1750863039188,-460.0,0.00016446,2]
[367570802,1750863039197,-460.0,0.00016446,2]
[367570803,1750863039206,-460.0,0.00016446,2]
[367570805,1750863039217,-460.0,0.00016446,2]
[367570807,1750863039226,-460.0,0.00016446,2]
[367570808,1750863039235,-944.02,0.00016446,2]
[367570810,1750863039247,-460.0,0.00016446,2]
[367570811,1750863039256,-460.0,0.00016446,2]
[367570813,1750863039265,-549.9748583,0.00016446,2]
[367570815,1750863039275,-539.83774693,0.00016446,2]
[367570816,1750863039284,-586.96,0.00016446,2]
[367570818,1750863039294,-460.0,0.00016446,2]
[367570820,1750863039303,-914.07,0.00016446,2]
[367570821,1750863039312,-3753.5,0.00016446,2]
[367570823,1750863039321,-460.0,0.00016446,2]
[367570824,1750863039331,-1518.03,0.00016446,2]
[367570826,1750863039340,-460.0,0.00016446,2]
[367570828,1750863039349,-633.03,0.00016446,2]
[367570829,1750863039358,-466.62,0.00016446,2]
[367570831,1750863039368,-460.0,0.00016446,2]
[367570832,1750863039377,-460.0,0.00016446,2]
[367570834,1750863039386,-460.0,0.00016446,2]
[367570836,1750863039395,-460.0,0.00016446,2]
[367570837,1750863039404,-460.0,0.00016446,2]
[367570839,1750863039413,-467.73,0.00016446,2]
[367570840,1750863039423,-493.78,0.00016446,2]
[367570842,1750863039432,-460.0,0.00016446,2]
[367570844,1750863039441,-460.0,0.00016446,2]
[367570845,1750863039451,-460.0,0.00016446,2]
[367570847,1750863039460,-460.0,0.00016446,2]
[367570849,1750863039470,-460.0,0.00016446,2]
[367570850,1750863039479,-460.0,0.00016446,2]
[367570852,1750863039489,-460.0,0.00016446,2]
[367570854,1750863039498,-460.0,0.00016446,2]
[367570855,1750863039507,-460.0,0.00016446,2]
[367570857,1750863039516,-460.0,0.00016447,2]
[367570858,1750863039526,-460.0,0.00016447,2]
[367570860,1750863039535,-257.40523676,0.00016447,2]
[367570862,1750863039544,-460.0,0.00016447,2]
[367570863,1750863039553,-460.0,0.00016447,2]
[367570865,1750863039562,-460.0,0.00016447,2]
[367570867,1750863039571,-460.0,0.00016447,2]
[367570868,1750863039581,-460.0,0.00016447,2]
[367570870,1750863039590,-460.0,0.00016447,2]
[367570872,1750863039599,-729.21,0.00016447,2]
[367570873,1750863039608,-460.0,0.00016447,2]
[367570875,1750863039617,-460.0,0.00016447,2]
[367570876,1750863039626,-460.0,0.00016447,2]
[367570878,1750863039635,-460.0,0.00016447,2]
[367570880,1750863039644,-460.0,0.00016447,2]
[367570881,1750863039653,-174.67052795,0.00016447,2]
[367570883,1750863039663,-460.0,0.00016447,2]
[367570884,1750863039674,-460.0,0.00016447,2]
[367570886,1750863039683,-460.0,0.00016447,2]
[367570888,1750863039692,-460.0,0.00016447,2]
[367570889,1750863039701,-460.0,0.00016447,2]
[367570891,1750863039711,-460.0,0.00016447,2]
[367570893,1750863039721,-460.0,0.00016447,2]
[367570894,1750863039730,-460.0,0.00016447,2]
[367570896,1750863039740,-460.0,0.00016447,2]
[367570898,1750863039749,-460.0,0.00016447,2]
[367570899,1750863039759,-460.0,0.00016447,2]
[367570901,1750863039769,-500.0,0.00016447,2]
[367570902,1750863039777,-527.98,0.00016447,2]
[367570904,1750863039786,-464.66015576,0.00016447,2]
[367570905,1750863039795,-460.0,0.00016447,2]
[367570907,1750863039805,-1027.12,0.00016447,2]
[367570909,1750863039814,-460.0,0.00016447,2]
[367570910,1750863039823,-460.0,0.00016447,2]
[367570912,1750863039832,-821.95,0.00016447,2]
[367570914,1750863039841,-460.0,0.00016447,2]
[367570915,1750863039850,-460.0,0.00016447,2]
[367570917,1750863039860,-460.0,0.00016447,2]
[367570919,1750863039870,-249041.16461277,0.00016447,2]
[367570920,1750863039880,-460.0,0.00016447,2]
[367570922,1750863039889,-460.0,0.00016447,2]
[367570924,1750863039898,-460.0,0.00016447,2]
[367570925,1750863039908,-318.27916767,0.00016447,2]
[367570927,1750863039917,-460.0,0.00016447,2]
[367570928,1750863039926,-555.06,0.00016447,2]
[367570930,1750863039935,-460.0,0.00016447,2]
[367570932,1750863039945,-448.17016079,0.00016447,2]
[367570933,1750863039954,-310.0,0.00016447,2]
[367570935,1750863039964,-465.72485313,0.00016447,2]
[367570937,1750863039973,-464.40072534,0.00016447,2]
[367570938,1750863039983,-460.0,0.00016447,2]
[367570940,1750863039994,-460.0,0.00016447,2]
[367570942,1750863040004,-386.11170303,0.00016447,2]
[367570943,1750863040013,-460.0,0.00016447,2]
[367570945,1750863040022,-460.0,0.00016447,2]
[367570947,1750863040032,-460.0,0.00016447,2]
[367570948,1750863040041,-460.0,0.00016447,2]
[367570950,1750863040050,-460.0,0.00016447,2]
[367570952,1750863040059,-460.0,0.00016447,2]
[367570953,1750863040068,-2046.28,0.00016447,2]
[367570955,1750863040078,-460.0,0.00016447,2]
[367570956,1750863040087,-460.0,0.00016447,2]
[367570958,1750863040096,-582.39750771,0.00016447,2]
[367570960,1750863040106,-460.0,0.00016447,2]
[367570961,1750863040116,-7733.45,0.00016447,2]
[367570963,1750863040125,-460.0,0.00016447,2]
[367570965,1750863040134,-460.0,0.00016447,2]
[367570966,1750863040144,-928.39,0.00016447,2]
[367570968,1750863040153,-1923.49,0.00016447,2]
[367570970,1750863040162,-460.0,0.00016447,2]
[367570971,1750863040172,-460.0,0.00016447,2]
[367570973,1750863040181,-451.55096451,0.00016447,2]
[367570975,1750863040191,-460.0,0.00016447,2]
[367570976,1750863040200,-460.0,0.00016447,2]
[367570978,1750863040210,-463.54,0.00016447,2]
[367570979,1750863040220,-460.0,0.00016447,2]
[367570981,1750863040229,-460.0,0.00016447,2]
[367570984,1750863040238,-439.80877188,0.00016448,2]
[367570985,1750863040248,-460.0,0.00016448,2]
[367570987,1750863040258,-435.43723935,0.00016448,2]
[367570988,1750863040267,-460.0,0.00016448,2]
[367570990,1750863040277,-460.0,0.00016448,2]
[367570992,1750863040287,-424.56224182,0.00016448,2]
[367570993,1750863040296,-461.45113583,0.00016448,2]
[367570995,1750863040306,-460.0,0.00016448,2]
[367570997,1750863040315,-460.0,0.00016448,2]
[367570999,1750863040325,-385.24756272,0.00016448,2]
[367571001,1750863040335,-460.0,0.00016448,2]
[367571003,1750863040345,-460.0,0.00016448,2]
[367571005,1750863040354,-274.84049211,0.00016448,2]
[367571007,1750863040364,-584.64946507,0.00016448,2]
[367571009,1750863040373,-388.51692016,0.00016448,2]
[367571011,1750863040382,-460.0,0.00016448,2]
[367571013,1750863040392,-460.0,0.00016448,2]
[367571014,1750863040401,-500.0,0.00016448,2]
[367571015,1750863040411,-500.0,0.00016448,2]
[367571016,1750863040421,-460.0,0.00016448,2]
[367571018,1750863040430,-994.72,0.00016448,2]
[367571019,1750863040439,-460.0,0.00016448,2]
[367571020,1750863040449,-460.0,0.00016448,2]
[367571021,1750863040459,-5789.2,0.00016448,2]
[367571022,1750863040469,-460.0,0.00016448,2]
[367571023,1750863040478,-559.76,0.00016448,2]
[367571024,1750863040488,-828.26,0.00016448,2]
[367571025,1750863040497,-460.0,0.00016448,2]
[367571026,1750863040506,-460.0,0.00016448,2]
[367571027,1750863040515,-460.0,0.00016448,2]
[367571028,1750863040525,-460.0,0.00016448,2]
[367571029,1750863040534,-673.51,0.00016448,2]
[367571030,1750863040543,-2417.07,0.00016448,2]
[367571031,1750863040553,-631.14,0.00016448,2]
[367571032,1750863040562,-460.0,0.00016448,2]
[367571033,1750863040572,-877.84,0.00016448,2]
[367571034,1750863040581,-971.87,0.00016448,2]
[367571035,1750863040590,-460.0,0.00016448,2]
[367571036,1750863040599,-2599.3,0.00016448,2]
[367571037,1750863040608,-460.0,0.00016449,2]
[367571038,1750863040618,-426.55686867,0.00016449,2]
[367571039,1750863040627,-460.0,0.00016449,2]
[367571040,1750863040637,-460.0,0.00016449,2]
[367571041,1750863040646,-460.0,0.00016449,2]
[367571042,1750863040656,-460.0,0.00016449,2]
[367571044,1750863040668,-460.0,0.00016449,2]
[367571045,1750863040677,-427.70169704,0.00016449,2]
[367571046,1750863040686,-327.69286312,0.00016449,2]
[367571047,1750863040696,-460.0,0.00016449,2]
[367571048,1750863040705,-460.0,0.00016449,2]
[367571050,1750863040715,-460.0,0.00016449,2]
[367571052,1750863040724,-462.94828053,0.00016449,2]
[367571054,1750863040734,-460.0,0.00016449,2]
[367571056,1750863040745,-460.0,0.00016449,2]
[367571058,1750863040754,-460.0,0.00016449,2]
[367571060,1750863040764,-460.0,0.00016449,2]
[367571062,1750863040773,-460.0,0.00016449,2]
[367571064,1750863040783,-460.0,0.00016449,2]
[367571066,1750863040792,-460.0,0.00016449,2]
[367571068,1750863040802,-460.0,0.00016449,2]
[367571070,1750863040811,-271.74069443,0.00016449,2]
[367571072,1750863040820,-460.0,0.00016449,2]
[367571074,1750863040830,-460.0,0.00016449,2]
[367571076,1750863040839,-460.0,0.00016449,2]
[367571078,1750863040848,-215.73370953,0.00016449,2]
[367571080,1750863040857,-460.0,0.00016449,2]
[367571082,1750863040867,-460.0,0.00016449,2]
[367571084,1750863040876,-460.0,0.00016449,2]
[367571086,1750863040885,-460.0,0.00016449,2]
[367571088,1750863040894,-460.0,0.00016449,2]
[367571090,1750863040903,-549.72,0.00016449,2]
[367571092,1750863040912,-395.55611842,0.00016449,2]
[367571094,1750863040922,-460.0,0.00016449,2]
[367571096,1750863040931,-460.0,0.00016449,2]
[367571098,1750863040940,-460.0,0.00016449,2]
[367571112,1750863041068,-460.0,0.00016449,2]
[367571114,1750863041077,-460.0,0.00016449,2]
[367571116,1750863041087,-460.0,0.00016449,2]
[367571118,1750863041097,-460.0,0.00016449,2]
[367571121,1750863041116,-460.88340503,0.00016449,2]
[367571123,1750863041125,-460.72158215,0.00016449,2]
[367571125,1750863041134,-464.61617947,0.00016449,2]
[367571127,1750863041143,-460.0,0.00016449,2]
[367571129,1750863041153,-460.0,0.00016449,2]
[367571131,1750863041162,-460.0,0.00016449,2]
[367571133,1750863041172,-460.0,0.00016449,2]
[367571135,1750863041181,-460.0,0.00016449,2]
[367571137,1750863041190,-460.0,0.00016449,2]
[367571139,1750863041199,-460.0,0.00016449,2]
[367571141,1750863041209,-462.45224602,0.00016449,2]
[367571143,1750863041218,-423.69189455,0.00016449,2]
[367571144,1750863041227,-460.0,0.00016449,2]
[367571147,1750863041237,-460.0,0.00016449,2]
[367571149,1750863041246,-466.54447998,0.00016449,2]
[367571151,1750863041255,-500.0,0.00016449,2]
[367571153,1750863041265,-500.0,0.00016473,2]
[367571154,1750863041274,-500.0,0.00016473,2]
[367571157,1750863041283,-500.0,0.00016473,2]
[367571158,1750863041292,-289.6183622,0.00016473,2]
[367571161,1750863041301,-500.0,0.00016473,2]
[367571163,1750863041310,-500.0,0.00016473,2]
[367571164,1750863041319,-500.0,0.00016473,2]
[367571166,1750863041328,-500.0,0.00016473,2]
[367571168,1750863041338,-326.66838517,0.00016473,2]
[367571171,1750863041347,-167.68785625,0.00016473,2]
[367571172,1750863041356,-500.0,0.00016473,2]
[367571175,1750863041365,-500.0,0.00016473,2]
[367571177,1750863041375,-500.0,0.00016473,2]
[367571179,1750863041384,-246.47197146,0.00016473,2]
[367571181,1750863041393,-500.0,0.00016473,2]
[367571183,1750863041402,-502.24757637,0.00016473,2]
[367571185,1750863041411,-500.0,0.00016473,2]
[367571186,1750863041420,-476.26006367,0.00016473,2]
[367571188,1750863041429,-500.51598291,0.00016473,2]
[367571190,1750863041439,-225.15736323,0.00016473,2]
[367571192,1750863041448,-500.0,0.00016473,2]
[367571195,1750863041457,-500.0,0.00016473,2]